bitfinex/quotes_ETHUSD_20251127
["timestamp","ask_amount","ask_price","bid_price","bid_amount"]
[1764214886607,3.50055787,3038.1,3037.8,0.11026831]
[1764214886907,0.30598708,3038.0,3037.8,0.11026831]
[1764214887504,0.30598708,3038.0,3037.9,3.81]
[1764214887682,0.209,3038.1,3037.9,4.20202683]
[1764214888998,0.002,3039.5,3038.0,3.19895688]
[1764214889228,0.30645001,3039.0,3038.1,0.72559411]
[1764214889378,0.209,3039.2,3037.9,0.39202683]
[1764214889574,0.30660348,3039.0,3038.0,0.209]
[1764214889890,0.30660348,3038.9,3038.0,3.40795688]
[1764214890094,0.93459411,3039.2,3038.1,6.58306178]
[1764214890095,0.209,3039.2,3038.1,6.58306178]
[1764214890493,0.51559629,3039.2,3038.1,6.58306178]
[1764214890694,0.30859629,3039.1,3038.1,6.58306178]
[1764214891001,0.002,3039.1,3038.1,6.58306178]
[1764214891906,0.002,3039.1,3038.2,2.05385414]
[1764214892213,0.002,3039.1,3038.3,6.58262844]
[1764214894085,0.002,3039.1,3038.3,3.29131422]
[1764214894288,0.002,3039.1,3038.3,6.58262844]
[1764214895606,0.002,3039.1,3038.4,3.60446088]
[1764214895808,0.002,3039.1,3038.5,2.28243446]
[1764214896193,0.002,3039.1,3038.6,6.58197854]
[1764214896493,0.002,3039.1,3038.7,0.405504]
[1764214897511,0.002,3039.1,3038.7,4.215504]
[1764214897718,0.002,3039.1,3038.8,3.19895688]
[1764214897901,0.002,3039.1,3038.9,0.74144609]
[1764214898484,0.002,3039.1,3039.0,3.2905561]
[1764214899419,0.002,3039.1,3039.0,3.4995561]
[1764214901022,0.002,3039.1,3039.0,3.9050601]
[1764214904528,0.002,3039.1,3039.0,6.29315676]
[1764214904734,0.002,3039.1,3039.0,7.64558046]
[1764214905701,0.002,3039.1,3039.0,10.16541662]
[1764214906105,0.002,3039.1,3039.0,7.77731996]
[1764214906339,0.002,3039.1,3039.0,7.64558046]
[1764214907801,0.002,3039.1,3039.0,8.37117457]
[1764214908441,0.002,3039.5,3039.4,8.58419332]
[1764214908680,0.002,3039.5,3039.4,13.74351599]
[1764214908847,0.002,3039.5,3039.4,17.03363904]
[1764214910209,0.002,3039.5,3039.4,19.4217357]
[1764214910428,0.002,3039.5,3039.4,17.03363904]
[1764214910930,0.002,3039.5,3039.4,19.4217357]
[1764214912448,0.002,3039.5,3039.4,19.8272397]
[1764214914618,0.002,3039.5,3039.4,18.24312653]
[1764214916248,0.002,3039.8,3039.5,3.806]
[1764214916450,0.002,3039.8,3039.6,2.48213726]
[1764214916652,0.002,3039.8,3039.7,0.208]
[1764214917344,0.002,3039.8,3039.7,3.49779833]
[1764214922265,3.28894801,3040.5,3040.2,3.3325]
[1764214922461,0.30724002,3040.4,3040.3,3.3325]
[1764214922666,0.78994002,3040.4,3040.3,3.3325]
[1764214924330,1.25944002,3040.4,3040.3,3.3325]
[1764214925659,4.54848093,3040.4,3040.3,3.3325]
[1764214925856,1.25944002,3040.4,3040.3,3.3325]
[1764214926190,0.78994002,3040.4,3040.3,3.3325]
[1764214926346,0.78994002,3040.4,3040.3,3.66575]
[1764214926534,1.25944002,3040.4,3040.3,3.66575]
[1764214926732,0.30724002,3040.4,3040.3,3.90745]
[1764214927034,0.1849,3041.0,3040.3,13.91829909]
[1764214927247,0.30727336,3040.9,3040.4,1.74155502]
[1764214927503,0.30727336,3040.8,3040.4,1.74155502]
[1764214927684,0.4682,3040.5,3040.4,1.74155502]
[1764214927972,0.77543023,3040.5,3040.1,6.48]
[1764214928266,0.77283023,3040.4,3040.1,6.48]
[1764214928570,3.75745728,3040.2,3040.1,6.48]
[1764214928731,4.06468751,3040.2,3040.1,6.48]
[1764214928932,4.53028751,3040.2,3040.1,6.48]
[1764214929362,7.91904407,3040.2,3039.5,3.81]
[1764214929667,0.77283023,3040.1,3039.6,3.81]
[1764214929969,0.30723023,3040.0,3039.6,3.81]
[1764214930261,0.30723023,3039.9,3039.6,3.81]
[1764214930426,0.30723023,3039.8,3039.6,3.81]
[1764214930634,0.4892,3039.9,3039.6,4.52000043]
[1764214930979,0.30728884,3039.8,3039.6,4.52000043]
[1764214931285,0.6702,3039.9,3039.6,4.52000043]
[1764214931468,0.30732753,3039.8,3039.6,4.52000043]
[1764214931663,0.6702,3039.9,3039.6,4.52000043]
[1764214931858,3.28925728,3040.2,3039.6,4.52000043]
[1764214931859,0.30732785,3039.8,3039.7,0.78100047]
[1764214932865,0.30732785,3039.8,3039.7,0.78300047]
[1764214933066,0.79922785,3039.8,3039.7,0.78300047]
[1764214934171,0.181,3039.9,3039.7,0.78300047]
[1764214934172,0.181,3039.9,3039.8,3.3181]
[1764214934476,0.30736755,3039.9,3039.8,3.3181]
[1764214934682,0.30736755,3039.9,3039.8,3.7873]
[1764214934998,0.30736755,3039.9,3039.8,4.57330961]
[1764214935383,0.79926755,3039.9,3039.8,4.10410961]
[1764214936798,0.30736755,3039.9,3039.8,7.39379972]
[1764214937094,0.30736755,3039.9,3039.8,7.86299972]
[1764214937294,0.30736755,3039.9,3039.8,7.86399972]
[1764214937872,0.208,3040.3,3039.8,11.15368983]
[1764214938071,0.30744631,3040.2,3039.9,1.43246271]
[1764214938273,0.30744631,3040.1,3039.9,1.43246271]
[1764214938594,0.30744631,3040.0,3039.9,1.43246271]
[1764214938994,0.30744631,3040.0,3039.9,5.1912446]
[1764214940002,0.208,3040.3,3040.0,3.01065369]
[1764214940200,0.72559411,3040.6,3040.2,0.4692]
[1764214940402,0.4892,3040.5,3040.3,3.01065369]
[1764214940803,0.4919,3040.4,3040.3,3.01065369]
[1764214941107,0.93359411,3040.7,3040.3,3.01065369]
[1764214941498,0.4919,3040.4,3040.3,3.01065369]
[1764214941698,0.4919,3040.4,3040.3,3.65141271]
[1764214941900,0.4919,3040.4,3040.3,3.01065369]
[1764214944908,0.1003,3040.3,3039.8,0.001]
[1764214945109,16.20355767,3040.4,3039.4,0.001]
[1764214945110,1.02939411,3039.8,3039.4,0.001]
[1764214945407,2.94129331,3039.5,3039.4,0.001]
[1764214945575,2.94129331,3039.5,3039.1,0.001]
[1764214945576,0.09949928,3039.2,3039.1,0.001]
[1764214945777,0.61209928,3039.2,3039.1,0.001]
[1764214945977,1.10129928,3039.2,3039.1,0.001]
[1764214947029,4.39163884,3039.2,3039.1,0.001]
[1764214947194,5.11723295,3039.2,3039.1,0.001]
[1764214950733,1.72739411,3039.2,3039.1,0.001]
[1764214950942,5.01773367,3039.2,3039.1,0.001]
[1764214952022,5.32428399,3039.2,3039.1,0.001]
[1764214955406,0.51455032,3039.2,3039.1,0.001]
[1764214955739,0.208,3039.2,3039.1,0.30226537]
[1764214956138,0.6999,3039.2,3039.1,0.30226537]
[1764214956434,0.6999,3039.2,3039.1,0.001]
[1764214957338,0.208,3039.2,3039.1,0.001]
[1764214957924,3.28992695,3039.6,3039.1,0.4702]
[1764214958243,3.28992695,3039.6,3038.7,0.001]
[1764214958244,1.13109811,3039.1,3038.7,0.001]
[1764214958542,0.28539928,3038.8,3038.7,0.001]
[1764214958713,0.49208347,3038.8,3038.7,0.001]
[1764214958914,0.209,3038.8,3038.7,0.001]
[1764214959111,1.3701,3038.8,3038.7,0.001]
[1764214959733,4.66087267,3038.8,3038.7,0.001]
[1764214960133,4.17167267,3038.8,3038.7,0.001]
[1764214960339,1.3439,3038.8,3038.7,0.001]
[1764214960532,4.63467267,3038.8,3038.7,0.001]
[1764214961040,1.3439,3038.8,3038.7,0.001]
[1764214961630,1.1349,3038.8,3038.7,0.001]
[1764214961831,1.3439,3038.8,3038.7,0.001]
[1764214963451,4.63467267,3038.8,3038.7,0.001]
[1764214963852,4.63467267,3038.8,3038.7,2.91435369]
[1764214964627,1.3439,3038.8,3038.7,2.91435369]
[1764214964944,1.65007758,3038.8,3038.7,2.91435369]
[1764214966133,1.00607758,3038.8,3038.7,2.91435369]
[1764214967555,1.46907758,3038.8,3038.7,2.91435369]
[1764214967827,1.00607758,3038.8,3038.7,2.91435369]
[1764214968522,0.6999,3038.8,3038.7,2.91435369]
[1764214968725,1.0063435,3038.8,3038.7,2.91435369]
[1764214968932,0.6999,3038.8,3038.7,2.91435369]
[1764214969346,0.51551845,3038.8,3038.7,2.91435369]
[1764214969569,3.29045686,3039.1,3038.7,3.38235369]
[1764214969747,0.51552756,3039.0,3038.9,0.468]
[1764214969949,0.209,3039.0,3038.9,3.38135369]
[1764214970163,0.51552756,3039.0,3038.9,3.38135369]
[1764214970356,0.30652756,3039.0,3038.9,3.38135369]
[1764214973368,0.80472756,3039.0,3038.9,2.91335369]
[1764214973569,0.30652756,3039.0,3038.9,2.91335369]
[1764214973774,0.30652756,3039.0,3038.9,3.38135369]
[1764214976999,3.59708366,3039.0,3038.9,2.91335369]
[1764214977166,4.09528366,3039.0,3038.9,2.91335369]
[1764214977895,4.55828366,3039.0,3038.9,2.91335369]
[1764214979170,4.09528366,3039.0,3038.9,2.91335369]
[1764214979494,0.30652756,3039.0,3038.9,3.38135369]
[1764214979699,0.30652756,3039.0,3038.9,3.87815369]
[1764214980198,0.30652756,3039.0,3038.9,2.91335369]
[1764214980396,0.30652756,3039.0,3038.9,3.38135369]
[1764214981195,0.30652756,3039.0,3038.9,3.87815369]
[1764214981494,0.30652756,3039.0,3038.9,4.09835547]
[1764214981698,0.30652756,3039.0,3038.9,4.59515547]
[1764214982599,0.30652756,3039.0,3038.9,7.88581985]
[1764214982788,0.002,3039.4,3039.2,2.60682613]
[1764214982971,0.002,3039.4,3039.3,3.9384313]
[1764214983171,0.002,3039.4,3039.3,5.41879213]
[1764214984002,0.002,3039.4,3039.3,8.02561826]
[1764214984506,0.002,3039.4,3039.3,4.55518696]
[1764214985093,0.002,3039.4,3039.3,7.84541826]
[1764214985506,0.002,3039.4,3039.3,4.05838696]
[1764214985818,0.002,3039.4,3039.3,2.60682613]
[1764214986014,0.9632,3039.4,3039.3,2.60682613]
[1764214987628,4.25332305,3039.4,3039.3,2.60682613]
[1764214990604,0.5002,3039.4,3039.3,2.60682613]
[1764214990802,0.002,3039.4,3039.3,3.05722613]
[1764214991012,0.002,3039.4,3039.3,3.38231874]
[1764214992454,0.4717,3039.4,3039.3,2.60682613]
[1764214992611,0.9389,3039.4,3039.3,2.60682613]
[1764214994645,1.24632756,3039.4,3039.3,2.60682613]
[1764214995539,4.53645061,3039.4,3039.3,2.60682613]
[1764214997946,4.06925061,3039.4,3039.3,2.60682613]
[1764214998312,0.77912756,3039.4,3039.3,2.60682613]
[1764214999652,4.06925061,3039.4,3039.3,2.60682613]
[1764215000443,3.59955061,3039.4,3039.3,3.05722613]
[1764215000759,0.30942756,3039.4,3039.3,3.05722613]
[1764215002253,0.30942756,3039.4,3039.3,2.60682613]
[1764215002438,4.53645061,3039.4,3039.3,2.60682613]
[1764215003937,3.59955061,3039.4,3039.3,2.60682613]
[1764215004350,4.06925061,3039.4,3039.3,2.60682613]
[1764215004533,0.77912756,3039.4,3039.3,2.60682613]
[1764215004864,0.30942756,3039.4,3039.3,3.05722613]
[1764215005727,0.30942756,3039.4,3039.3,3.54402613]
[1764215006133,0.30942756,3039.4,3039.3,3.05722613]
[1764215011260,0.30942756,3039.4,3039.3,3.54402613]
[1764215013059,0.30942756,3039.4,3039.3,3.05722613]
[1764215014172,4.06925061,3039.4,3039.3,2.60682613]
[1764215014377,4.53645061,3039.4,3039.3,2.60682613]
[1764215014979,0.77912756,3039.4,3039.3,2.60682613]
[1764215015483,0.30942756,3039.4,3039.3,3.05722613]
[1764215019293,0.30942756,3039.4,3039.3,6.30669579]
[1764215020274,0.30942756,3039.4,3039.3,6.27299579]
[1764215020595,0.30942756,3039.4,3039.3,3.88396874]
[1764215022018,0.30942756,3039.4,3039.3,3.43086874]
[1764215022923,0.30942756,3039.4,3039.3,2.60682613]
[1764215022924,0.80612756,3039.4,3039.3,2.60682613]
[1764215023129,1.26462756,3039.4,3039.3,2.60682613]
[1764215023729,0.80612756,3039.4,3039.3,2.60682613]
[1764215023908,4.09625061,3039.4,3039.3,2.60682613]
[1764215024226,4.55475061,3039.4,3039.3,2.60682613]
[1764215024519,1.26462756,3039.4,3039.3,2.60682613]
[1764215025703,0.30942756,3039.4,3039.3,7.10234004]
[1764215026604,0.002,3039.4,3039.3,7.10234004]
[1764215027894,0.002,3039.4,3039.3,9.49136709]
[1764215028236,0.002,3039.8,3039.3,9.49136709]
[1764215028237,0.002,3039.8,3039.7,2.60482613]
[1764215028391,0.002,3039.8,3039.7,5.48535318]
[1764215028595,0.002,3039.8,3039.7,6.5077885]
[1764215029736,0.002,3039.8,3039.7,9.79758683]
[1764215030322,0.002,3039.8,3039.7,12.18661388]
[1764215030638,0.002,3039.8,3039.7,9.79758683]
[1764215030852,0.002,3039.8,3039.7,19.07211788]
[1764215031002,0.002,3039.8,3039.7,19.79771199]
[1764215037016,0.002,3039.8,3039.7,19.93142026]
[1764215037736,0.002,3040.1,3039.9,0.405504]
[1764215037927,0.002,3040.1,3040.0,9.21347834]
[1764215038134,0.002,3040.1,3040.0,8.03360512]
[1764215038332,0.002,3040.1,3040.0,14.96670512]
[1764215038746,0.002,3040.1,3040.0,18.2561788]
[1764215039257,0.002,3040.1,3036.8,0.3294]
[1764215039258,33.468,3039.9,3036.8,0.3294]
[1764215039466,4.8292541,3036.9,3036.8,1.66778669]
[1764215039754,5.04696673,3036.9,3035.3,2.38902705]
[1764215039954,5.04696673,3036.9,3035.4,2.62792976]
[1764215039955,2.93494561,3035.5,3035.4,2.62792976]
[1764215040118,0.7043916,3035.5,3035.4,0.68733333]
[1764215040317,1.87852365,3035.5,3035.4,2.65379997]
[1764215040747,0.7043916,3035.5,3035.4,0.4915]
[1764215040951,0.7043916,3035.5,3035.1,0.6425]
[1764215041118,0.88053787,3035.3,3035.1,0.1894]
[1764215041458,0.7043916,3035.2,3035.1,0.1894]
[1764215041623,0.7043916,3035.2,3035.1,0.6425]
[1764215041817,0.7043916,3035.2,3035.1,1.134]
[1764215042746,0.7043916,3035.2,3035.1,4.42878435]
[1764215043352,0.7043916,3035.2,3035.1,0.7937716]
[1764215043522,0.7043916,3035.2,3035.1,0.6809]
[1764215044382,0.7043916,3035.2,3035.1,1.348]
[1764215044676,0.88053787,3035.7,3035.1,1.348]
[1764215044879,0.69793288,3035.6,3035.4,0.4915]
[1764215045162,0.69593288,3035.5,3035.4,0.4915]
[1764215045366,0.69593288,3035.5,3035.4,1.24489516]
[1764215045533,0.69393288,3035.5,3035.4,1.69799516]
[1764215045947,0.63081857,3035.5,3035.4,5.30461522]
[1764215046138,0.88053787,3036.4,3035.5,0.93596552]
[1764215046363,0.88053787,3036.6,3035.7,0.4915]
[1764215046563,0.88053787,3036.6,3035.8,0.002]
[1764215046564,0.88053787,3036.2,3035.8,0.002]
[1764215046860,0.88053787,3036.6,3035.8,3.29602463]
[1764215047063,0.88053787,3036.6,3035.8,0.002]
[1764215047240,0.88053787,3036.5,3035.9,0.214]
[1764215047842,0.88053787,3036.6,3035.9,0.214]
[1764215048037,0.88053787,3036.6,3035.9,0.89442637]
[1764215049174,0.88053787,3036.5,3035.9,0.214]
[1764215050063,0.88053787,3036.5,3035.9,3.5079048]
[1764215050769,0.88053787,3036.5,3035.9,0.214]
[1764215050969,0.88053787,3036.5,3035.9,3.50788705]
[1764215052080,0.88053787,3036.5,3035.9,3.50791269]
[1764215052263,0.88053787,3036.4,3035.9,4.23407536]
[1764215052666,0.88053787,3036.4,3035.3,6.49562168]
[1764215052667,28.36136,3035.8,3032.0,0.1922]
[1764215052859,3.20111606,3033.6,3032.1,0.6603]
[1764215053051,0.86764412,3033.2,3032.1,0.2022]
[1764215053283,0.86764412,3033.0,3032.1,0.2022]
[1764215053582,0.86764412,3032.8,3032.1,0.1022]
[1764215055384,0.0389,3033.1,3032.5,0.6498834]
[1764215056282,0.0389,3033.1,3032.2,3.97403403]
[1764215056580,0.86764412,3033.3,3032.2,3.97403403]
[1764215056581,0.86764412,3033.3,3032.3,3.65921606]
[1764215056788,0.0389,3033.4,3032.3,3.65921606]
[1764215056989,0.0389,3033.4,3032.4,8.1008445]
[1764215057483,0.0389,3033.4,3032.5,0.4581]
[1764215057884,0.0389,3033.4,3032.3,0.4581]
[1764215057885,0.99654412,3033.4,3032.3,0.4581]
[1764215058086,0.68813349,3033.3,3032.3,0.4581]
[1764215058263,0.68813349,3033.2,3032.3,0.4581]
[1764215058464,4.29319335,3033.4,3032.3,0.4581]
[1764215058465,0.68813349,3033.1,3032.3,0.4581]
[1764215058771,0.68766642,3033.0,3032.3,0.4581]
[1764215058978,0.09,3033.3,3032.3,0.4581]
[1764215059188,0.68767549,3033.2,3032.3,4.78164175]
[1764215059376,0.68767549,3033.1,3032.3,1.02572594]
[1764215059567,0.68767549,3033.1,3032.1,3.20311606]
[1764215059568,0.68767549,3033.0,3032.1,3.20311606]
[1764215059766,0.68767549,3032.9,3032.2,3.29788875]
[1764215059973,0.09949928,3033.2,3032.2,3.29788875]
[1764215060195,0.09949928,3033.2,3032.1,3.66121606]
[1764215060196,0.68737407,3033.1,3032.1,0.4601]
[1764215060477,1.55501819,3033.0,3032.2,0.217]
[1764215060787,0.68737407,3032.9,3032.2,0.217]
[1764215061095,0.68737407,3032.8,3032.2,3.93161969]
[1764215061296,0.68737407,3032.7,3032.3,0.217]
[1764215061603,0.95764412,3033.0,3032.3,0.217]
[1764215061797,0.68742092,3032.9,3032.3,0.217]
[1764215062001,0.68742092,3032.8,3032.3,0.217]
[1764215062302,0.68776601,3032.7,3032.3,0.61036614]
[1764215062597,0.86764412,3033.1,3032.6,0.4898]
[1764215062810,0.76449411,3033.4,3032.6,0.4898]
[1764215062811,0.68778564,3033.0,3032.6,0.4898]
[1764215063002,0.86764412,3033.3,3032.6,3.78722873]
[1764215063187,0.68774801,3033.2,3032.6,3.78922873]
[1764215063387,0.68774801,3033.1,3032.6,4.29894135]
[1764215063588,0.68774801,3033.0,3032.6,1.00151262]
[1764215063903,0.86764412,3033.2,3032.6,3.78928192]
[1764215063904,0.68774801,3032.9,3032.6,3.78928192]
[1764215064116,0.86764412,3033.2,3032.6,0.4918]
[1764215064409,1.55602074,3033.1,3032.6,0.002]
[1764215064578,0.68837662,3033.0,3032.6,3.29949608]
[1764215064769,0.86764412,3032.7,3032.6,3.29949608]
[1764215064976,1.55602074,3032.7,3032.6,0.002]
[1764215065401,0.68837662,3032.7,3032.6,0.002]
[1764215066194,0.68837662,3032.7,3032.4,6.81243556]
[1764215066375,1.55113965,3032.6,3032.4,5.07879886]
[1764215066594,0.68837662,3032.5,3032.4,5.07879886]
[1764215067122,0.68837662,3032.5,3032.4,5.56859886]
[1764215068220,0.86476303,3033.0,3032.4,8.86631683]
[1764215068418,0.86276303,3032.7,3032.5,0.9259683]
[1764215068590,1.55402759,3032.6,3032.5,0.98678004]
[1764215068914,1.15685883,3032.8,3032.5,7.5819985]
[1764215069114,0.69519373,3032.7,3032.5,3.79458927]
[1764215069301,1.15685883,3032.7,3032.6,1.27791971]
[1764215069484,1.15685883,3032.7,3032.6,0.81981971]
[1764215069485,0.69780048,3032.7,3032.6,0.81981971]
[1764215069692,1.86079798,3032.7,3032.6,0.82181971]
[1764215070015,0.69780048,3032.7,3032.6,0.82181971]
[1764215070227,1.86079608,3032.7,3032.6,0.82181971]
[1764215070920,1.86079608,3032.7,3032.6,1.76971971]
[1764215071224,0.69780048,3032.7,3032.6,1.76971971]
[1764215071521,0.69780048,3032.7,3032.6,4.46440049]
[1764215074200,0.69780048,3032.7,3032.6,1.1669]
[1764215074400,0.69780048,3032.7,3032.6,4.46440049]
[1764215074806,0.69780048,3032.7,3032.6,4.00630049]
[1764215075207,0.69780048,3032.7,3032.6,5.1899946]
[1764215075415,0.69873598,3032.7,3032.6,6.03875742]
[1764215076019,0.002,3033.0,3032.6,6.03875742]
[1764215076020,0.002,3033.0,3032.6,9.33625791]
[1764215076213,0.002,3033.0,3032.9,0.4898]
[1764215076420,0.70142961,3033.0,3032.9,0.62619958]
[1764215076615,0.70142961,3033.0,3032.9,1.02841064]
[1764215077019,0.002,3033.0,3032.9,4.32558496]
[1764215078221,0.002,3033.0,3032.9,4.18918538]
[1764215078417,0.002,3033.0,3032.9,4.64728538]
[1764215079131,0.70388544,3033.0,3032.9,4.64728538]
[1764215079834,0.70388544,3033.0,3032.9,4.64928538]
[1764215080234,0.70388544,3033.0,3032.9,3.76227557]
[1764215080435,0.70388544,3033.0,3032.9,0.002]
[1764215080733,0.70388544,3033.0,3032.9,3.29917432]
[1764215080934,0.70388544,3033.0,3032.9,4.20887432]
[1764215081234,1.0096921,3033.0,3032.9,3.29917432]
[1764215081407,1.0096921,3033.0,3032.9,3.75497432]
[1764215082142,2.74498034,3033.0,3032.9,4.9356995]
[1764215082343,2.74498034,3033.0,3032.9,4.39952734]
[1764215083044,2.59616991,3033.0,3032.8,0.216]
[1764215083245,2.59616991,3033.0,3032.6,1.57435693]
[1764215083246,1.0056921,3032.9,3032.6,0.405504]
[1764215083444,0.70188544,3032.8,3032.7,0.621504]
[1764215083953,0.70188544,3032.8,3032.7,0.6718]
[1764215084750,0.70188544,3032.8,3032.7,1.1257]
[1764215085252,0.70188544,3032.8,3032.7,5.14868587]
[1764215085543,0.70188544,3032.8,3032.7,5.99340538]
[1764215089856,0.002,3033.0,3032.8,1.13109811]
[1764215090078,0.002,3033.0,3032.9,0.4558]
[1764215090403,0.002,3033.0,3032.9,0.9117]
[1764215090404,0.70944554,3033.0,3032.9,0.9117]
[1764215090542,0.70944554,3033.0,3032.9,1.1277]
[1764215090740,0.70944554,3033.0,3032.9,2.05697971]
[1764215091179,0.002,3033.0,3032.9,2.05697971]
[1764215091541,0.002,3033.0,3032.9,5.35415403]
[1764215092270,0.70970526,3033.0,3032.9,5.35415403]
[1764215093578,0.002,3033.0,3032.9,5.75965803]
[1764215096490,0.002,3033.0,3032.9,6.48525214]
[1764215097428,0.002,3033.0,3032.9,16.77525214]
[1764215099034,0.002,3033.0,3032.9,10.29525214]
[1764215099612,0.1072,3034.0,3032.9,10.29525214]
[1764215099613,0.70796687,3034.3,3033.6,0.6526]
[1764215099812,0.4601,3035.5,3034.7,0.4558]
[1764215100035,0.4601,3035.5,3034.9,3.39591103]
[1764215100536,0.30747473,3035.2,3034.8,0.215]
[1764215100727,0.1072,3036.0,3034.8,0.215]
[1764215100927,1.0158962,3035.9,3034.8,0.215]
[1764215101125,1.0158962,3035.8,3034.8,0.215]
[1764215101438,0.30747632,3035.7,3034.8,0.215]
[1764215101626,0.30747632,3035.6,3034.8,0.215]
[1764215101834,0.30747632,3035.5,3034.9,6.59000296]
[1764215102137,0.30747632,3035.4,3034.9,6.59000296]
[1764215102338,0.1072,3036.0,3034.9,6.59000296]
[1764215102542,0.30684612,3035.9,3034.9,6.59000296]
[1764215102740,0.30684612,3035.8,3034.9,7.31609326]
[1764215102938,0.30684612,3035.7,3034.9,7.31609326]
[1764215103139,0.30684612,3035.6,3034.9,7.76999326]
[1764215103442,0.1072,3036.0,3034.9,7.76999326]
[1764215103743,0.002,3035.7,3034.9,7.76999326]
[1764215103942,0.30665843,3035.6,3035.0,0.87897884]
[1764215104126,0.002,3035.7,3035.0,1.33287884]
[1764215104322,0.002,3035.7,3035.1,0.1968]
[1764215104522,0.002,3035.7,3035.2,0.215]
[1764215104523,0.30846766,3035.7,3035.2,0.215]
[1764215104736,0.30646766,3035.6,3035.2,0.215]
[1764215104937,0.002,3035.7,3035.2,0.215]
[1764215105124,0.002,3035.7,3035.2,0.217]
[1764215105533,0.30852568,3035.7,3035.2,0.217]
[1764215105751,0.002,3035.7,3035.2,0.217]
[1764215106043,0.002,3035.7,3035.2,3.51158872]
[1764215106646,0.002,3035.7,3035.2,0.002]
[1764215106948,0.36220256,3035.7,3035.2,0.002]
[1764215107137,0.36220256,3035.7,3035.3,0.215]
[1764215107622,0.002,3035.7,3035.3,0.215]
[1764215108217,0.002,3035.7,3035.3,3.50955891]
[1764215108651,0.002,3035.7,3035.3,3.29455891]
[1764215108847,0.002,3035.7,3035.3,3.50955891]
[1764215109022,0.002,3035.7,3035.3,0.215]
[1764215109650,0.002,3035.7,3035.6,0.4948]
[1764215109953,0.002,3035.7,3035.6,3.78904166]
[1764215110155,0.002,3035.7,3035.6,0.4948]
[1764215110341,0.002,3035.7,3035.6,4.00404166]
[1764215110649,0.002,3035.7,3035.6,4.48934166]
[1764215111028,0.002,3035.7,3035.6,3.50924166]
[1764215113255,0.002,3035.7,3035.5,3.81]
[1764215113458,0.0483,3035.6,3035.5,3.81]
[1764215115061,0.0483,3035.6,3035.5,3.812]
[1764215115257,0.0483,3035.6,3035.5,0.002]
[1764215116368,0.38275087,3035.6,3035.5,0.002]
[1764215116567,0.0483,3035.6,3035.5,0.002]
[1764215117667,3.34254166,3035.6,3035.5,0.002]
[1764215117964,3.44204094,3035.6,3035.5,0.002]
[1764215118682,0.14779928,3035.6,3035.5,0.002]
[1764215118972,3.44204094,3035.6,3035.5,0.002]
[1764215119203,0.14779928,3035.6,3035.5,0.002]
[1764215119658,0.0483,3035.6,3035.5,0.002]
[1764215121533,3.34254166,3035.6,3035.5,0.002]
[1764215121834,4.47259213,3035.6,3035.5,0.002]
[1764215122561,4.47259304,3035.6,3035.5,0.002]
[1764215124773,4.87809704,3035.6,3035.5,0.002]
[1764215125078,0.09949928,3035.4,3035.3,0.001]
[1764215125266,0.45275727,3035.4,3035.3,0.001]
[1764215126255,4.4728101,3035.4,3035.3,0.001]
[1764215126479,4.8783141,3035.4,3035.3,0.001]
[1764215126986,5.582882,3035.4,3035.3,0.001]
[1764215128685,1.78342,3035.4,3035.3,0.001]
[1764215128986,1.0788521,3035.4,3035.3,0.001]
[1764215129284,1.78604988,3035.4,3035.3,0.001]
[1764215130187,5.0805086,3035.4,3035.3,0.001]
[1764215130558,1.78604988,3035.4,3035.3,0.001]
[1764215130958,5.0805086,3035.4,3035.3,0.001]
[1764215131385,5.18000788,3035.4,3035.3,0.001]
[1764215132364,5.58551188,3035.4,3035.3,0.001]
[1764215133087,6.7643622,3035.4,3035.3,0.001]
[1764215133291,5.58551188,3035.4,3035.3,0.001]
[1764215135668,5.58539956,3035.4,3035.3,0.001]
[1764215136771,5.68539956,3035.4,3035.3,0.001]
[1764215137470,6.99626242,3035.4,3035.3,0.001]
[1764215139472,10.46426242,3035.4,3035.3,0.001]
[1764215139680,6.99626242,3035.4,3035.3,0.001]
[1764215140292,6.89626242,3035.4,3035.3,0.001]
[1764215141193,10.46426242,3035.4,3035.3,0.001]
[1764215141770,6.89626242,3035.4,3035.3,0.001]
[1764215142173,6.99626242,3035.4,3035.3,0.001]
[1764215143297,5.8174121,3035.4,3035.3,0.001]
[1764215144001,5.7174121,3035.4,3035.3,0.001]
[1764215147987,5.8174121,3035.4,3035.3,0.001]
[1764215148297,9.2854121,3035.4,3035.3,0.001]
[1764215148701,9.2854121,3035.4,3034.9,0.001]
[1764215148702,0.50500328,3035.0,3034.9,0.001]
[1764215149001,5.70670826,3035.0,3034.9,0.001]
[1764215149899,12.46960117,3035.0,3034.9,0.001]
[1764215150217,10.82542928,3035.0,3034.9,0.001]
[1764215150377,6.97449384,3035.0,3034.9,0.001]
[1764215151600,6.66182766,3035.0,3034.9,0.001]
[1764215151809,5.79866685,3035.0,3034.9,0.001]
[1764215154013,6.97432694,3035.0,3034.9,0.001]
[1764215154313,10.17709436,3035.0,3034.9,0.001]
[1764215154505,10.66879436,3035.0,3034.9,0.001]
[1764215156205,7.36652766,3035.0,3034.9,0.001]
[1764215156406,7.46602694,3035.0,3034.9,0.001]
[1764215156594,8.68754431,3035.0,3034.9,0.001]
[1764215156987,5.62356285,3035.0,3034.9,0.4622]
[1764215157322,6.22770898,3035.0,3034.9,0.001]
[1764215157499,1.01187655,3035.0,3034.9,0.9539]
[1764215157701,4.51976946,3035.0,3034.9,0.9539]
[1764215157915,5.24536357,3035.0,3034.9,0.9539]
[1764215158302,1.95047066,3035.0,3034.9,0.9539]
[1764215158517,5.24536357,3035.0,3034.9,0.9539]
[1764215159621,1.73747066,3035.0,3034.9,0.9539]
[1764215159918,1.95047066,3035.0,3034.9,0.9539]
[1764215160630,5.24536357,3035.0,3034.9,0.9539]
[1764215161098,1.95047066,3035.0,3034.9,0.9539]
[1764215161895,0.519035,3035.0,3034.9,0.9539]
[1764215162318,1.22606964,3035.0,3034.9,0.9539]
[1764215163216,0.519035,3035.0,3034.9,0.9539]
[1764215164025,4.8208213,3035.0,3034.9,0.001]
[1764215164198,6.00155629,3035.0,3034.9,0.001]